Cogmind - Beta 13 *** ADVENTURER MODE // 2024.06.25 @ 19:55:16 Player: yub Result: Destroyed by RA-E8K(z) with Zionite Laser-S Performance ------------- Evolutions (1) 500 Regions Visited (6) 1200 Robots Destroyed (10) 50 Value Destroyed (207) 207 Prototype IDs (1) 20 Alien Tech Used (0) 0 Bonus (300) 300 TOTAL SCORE: 2277 Bonus ------- Met Imprinter 300 Cogmind --------- Core Integrity 0/400 Matter 226/300 Energy 100/100 System Corruption 0% Temperature Cool (18) Movement Core (50) Location -7/Deep Caves Parts ------- > --- POWER (1) -------- (None) > --- PROPULSION (2) --- (None) > --- UTILITY (4) ------ Improved Signal Interpreter > --- WEAPON (2) ------- (None) > --- INVENTORY (5) ---- (None) Peak State ------------ > --- POWER ------------ Cooled Ion Engine > --- PROPULSION ------- Carbon-fiber Leg Carbon-fiber Leg > --- UTILITY ---------- Small Storage Unit Sensor Array Seismic Detector Tractor Beam > --- WEAPON ----------- Slug Cannon Enhanced Flamer > --- INVENTORY -------- Deuterium Engine Deuterium Engine Carbon-fiber Leg Carbon-fiber Leg Improved Signal Interpreter Improved Power Shielding Light Armor Plating Plasma Cutter [Rating: 22] Favorites ----------- Power Cooled Ion Engine Engine Cooled Ion Engine Propulsion Carbon-fiber Leg Treads Light Treads Leg Carbon-fiber Leg Wheel Wheel Utility Small Storage Unit Device Sensor Array Storage Small Storage Unit Processor Improved Signal Interpreter Protection Improved Power Shielding Weapon Light Assault Rifle Ballistic Gun Light Assault Rifle Ballistic Cannon Slug Cannon Special Weapon Enhanced Flamer Build | -11 -10 -10 -9 -9 -7 -7 ------- Run | Yrd Mat Min Mat Min Zio Dee Slots Evolved 2 | . . . 2 . . . Power . | . . . . . . . Propulsion . | . . . . . . . Utility 2 | . . . 2 . . . Weapon . | . . . . . . . Parts Attached 31 | 6 2 1 10 . 3 9 Power 6 | 1 . 1 3 . . 1 Engine 6 | 1 . 1 3 . . 1 Core . | . . . . . . . Reactor . | . . . . . . . Propulsion 10 | 2 1 . 5 . . 2 Treads 3 | . . . 3 . . . Leg 4 | . . . 2 . . 2 Wheel 3 | 2 1 . . . . . Hover . | . . . . . . . Flight . | . . . . . . . Utility 8 | 1 1 . 2 . . 4 Device 4 | . 1 . 2 . . 1 Storage 1 | 1 . . . . . . Processor 1 | . . . . . . 1 Hackware . | . . . . . . . Protection 2 | . . . . . . 2 Artifact . | . . . . . . . Weapon 7 | 2 . . . . 3 2 Energy Gun . | . . . . . . . Energy Cannon . | . . . . . . . Ballistic Gun 2 | 2 . . . . . . Ballistic Cannon 1 | . . . . . 1 . Launcher . | . . . . . . . Special Weapon 4 | . . . . . 2 2 Impact Weapon . | . . . . . . . Slashing Weapon . | . . . . . . . Piercing Weapon . | . . . . . . . Special Melee Weapon . | . . . . . . . Unidentified Prototypes 1 | . . . 1 . . . Parts Lost 20 | . 1 2 1 . . 16 Power 3 | . . 1 . . . 2 Propulsion 7 | . 1 1 1 . . 4 Utility 7 | . . . . . . 7 Weapon 3 | . . . . . . 3 Highest Loss Streak 16 | . 1 2 1 . . 16 To Critical Strikes . | . . . . . . . Average Slot Usage (%) 94 | . 99 98 84 100 100 92 Engine 11 | . 14 14 10 11 11 10 Treads 2 | . . . 7 . . . Leg 12 | . . . 4 22 22 21 Wheel 6 | . 28 26 1 . . . Device 26 | . 13 14 26 33 33 28 Storage 11 | . 14 14 11 11 11 11 Ballistic Gun 14 | . 28 28 22 22 6 . Ballistic Cannon 4 | . . . . . 7 9 Special Weapon 3 | . . . . . 7 8 Naked Turns . | . . . . . . . Heaviest Build 25 | 10 11 11 19 18 25 25 Greatest Support 40 | 20 26 26 40 30 30 30 Greatest Overweight (x) 4 | 2 . . 3 . . 4 Average Overweight (x) . | . . . . . . . Largest Inventory Capacity 8 | 8 8 8 8 8 8 8 Average Capacity 7 | 7 8 8 8 8 8 8 Most Carried 8 | 4 4 3 8 8 8 8 Average Carried 5 | 1 1 2 4 8 7 7 Final Capacity 8 | 8 8 8 8 8 8 5 Final Carried 8 | 1 3 2 8 8 8 . Class Distribution -------------------- 100% | Mutant Dominant Class ---------------- Mutant | -10/Materials Mutant | -10/Mines Mutant | -9/Materials Mutant | -9/Mines Mutant | -7/Zion Mutant | -7/Deep Caves Resources | -11 -10 -10 -9 -9 -7 -7 ----------- Run | Yrd Mat Min Mat Min Zio Dee Matter Collected 441 | 205 89 14 85 . 33 15 Remotely 88 | . . . 40 . 33 15 Salvage Created 304 | . 112 28 158 . . 6 Parts 28 | . 10 4 14 . . . Haulers Intercepted . | . . . . . . . Recyclers Shooed 2 | . 1 1 . . . . Parts Field Recycled . | . . . . . . . Retrieved Matter . | . . . . . . . Parts Self-Destructed . | . . . . . . . Prevented . | . . . . . . . Kills | -11 -10 -10 -9 -9 -7 -7 ------- Run | Yrd Mat Min Mat Min Zio Dee Combat Hostiles Destroyed 11 | . 3 2 3 . . 3 Guns 8 | . 3 2 3 . . . Cannons 3 | . . . . . . 3 Classes Destroyed 5 | . 3 . 1 . . 1 Recycler 1 | . 1 . . . . . Watcher 1 | . 1 . . . . . Swarmer 5 | . 3 2 . . . . Sentry 3 | . . . 3 . . . Assembled 3 | . . . . . . 3 Best Kill Streak 2 | . 2 2 2 . . 2 Combat Bots Only 2 | . 2 2 2 . . 2 Max Kills in Single Turn 1 | . 1 1 1 . . 1 Gunslinging . | . . . . . . . Exploded . | . . . . . . . Melee . | . . . . . . . Uniques/NPCs Destroyed . | . . . . . . . Combat | -11 -10 -10 -9 -9 -7 -7 -------- Run | Yrd Mat Min Mat Min Zio Dee Hostile Shots Fired 188 | . 19 22 18 . . 129 Missed 75 | . 5 8 6 . . 56 Damage Taken 2069 | . 97 136 140 . . 1696 Core 464 | . 26 26 23 . . 389 Absorbed by Shields . | . . . . . . . Redirected to Shielding 102 | . . . . . . 102 Ignored by Resistances 565 | . 32 43 39 . . 451 Regen/Repaired (Parts) 7 | . . . . . 7 . Core Remaining (%) 89 | 100 . 79 . . . . Volleys Fired 43 | . 14 4 14 . 4 7 Largest 2 | . 2 2 2 . 1 2 Hottest 128 | . 40 40 40 . 20 128 Shots Fired 79 | . 28 8 28 . 4 11 Gun 64 | . 28 8 28 . . . Cannon 7 | . . . . . . 7 Launcher . | . . . . . . . Special 8 | . . . . . 4 4 Kinetic 71 | . 28 8 28 . . 7 Thermal 8 | . . . . . 4 4 Explosive . | . . . . . . . Electromagnetic . | . . . . . . . Robot Hit Streak 16 | . 16 2 16 . . 2 Robot Miss Streak 2 | . 1 1 1 . . 2 Penetration Max . | . . . . . . . Secondary Targets . | . . . . . . . Shots Hit Robots 56 | . 22 5 24 . . 5 Core Hits 28 | . 9 4 11 . . 4 Critical Kills . | . . . . . . . Critical Parts Destroyed . | . . . . . . . Critical Strikes . | . . . . . . . Melee Attacks . | . . . . . . . Impact . | . . . . . . . Slashing . | . . . . . . . Piercing . | . . . . . . . Sneak Attacks . | . . . . . . . Combat Hostiles . | . . . . . . . Follow-up Attacks . | . . . . . . . Damage Inflicted 557 | . 180 38 194 . . 145 Guns 411 | . 180 38 193 . . . Cannons 135 | . . . . . . 135 Explosions . | . . . . . . . Melee . | . . . . . . . Ramming 1 | . . . 1 . . . Kinetic 546 | . 180 38 193 . . 135 Thermal 10 | . . . . . . 10 Explosive . | . . . . . . . Electromagnetic . | . . . . . . . Impact . | . . . . . . . Slashing . | . . . . . . . Piercing . | . . . . . . . Highest Corruption 3 | . . 3 . . . . Average Corruption 3 | . . 3 . . . . Corruption Purged . | . . . . . . . Corruption Blocked . | . . . . . . . Overload Shots . | . . . . . . . Overflow Damage 7 | . . . . . . 7 Projectiles 7 | . . . . . . 7 Explosions . | . . . . . . . Melee . | . . . . . . . Knockbacks . | . . . . . . . Impact . | . . . . . . . Kinetic . | . . . . . . . Secondary . | . . . . . . . Self-Inflicted Damage . | . . . . . . . Shots . | . . . . . . . Rammed . | . . . . . . . Targets Rammed 1 | . . . 1 . . . Kicked 1 | . . . 1 . . . Crushed . | . . . . . . . Highest Temperature 162 | . 18 . 6 . . 162 Average Temperature 39 | . 12 . 4 . . 53 Received Heat Transfer 808 | . 27 40 51 . . 690 Siege Activations . | . . . . . . . Robots Corrupted . | . . . . . . . Combat Hostiles . | . . . . . . . Parts Fried . | . . . . . . . Impact Corruptions . | . . . . . . . Robots Melted . | . . . . . . . Combat Hostiles . | . . . . . . . Parts Melted . | . . . . . . . Heat Transferred 80 | . . . . . . 80 Parts Sabotaged . | . . . . . . . Parts Stolen . | . . . . . . . Parts Stripped . | . . . . . . . Power Chain Reactions . | . . . . . . . Alert | -11 -10 -10 -9 -9 -7 -7 ------- Run | Yrd Mat Min Mat Min Zio Dee Peak Influence 132 | . 116 89 132 . . . Initial 34 | . . 34 22 . . . Average 53 | . 59 64 54 . . . Maximum Alert Level . | . . . . . . . Low Security (%) 100 | 100 100 100 100 100 . . Level 1 . | . . . . . . . Level 2 . | . . . . . . . Level 3 . | . . . . . . . Level 4 . | . . . . . . . Level 5 . | . . . . . . . High Security . | . . . . . . . Max Security . | . . . . . . . Squads Dispatched . | . . . . . . . Investigation . | . . . . . . . Extermination . | . . . . . . . Reinforcement . | . . . . . . . Assault . | . . . . . . . Garrison . | . . . . . . . Intercept . | . . . . . . . Searches Triggered . | . . . . . . . Construction Impeded . | . . . . . . . Haulers Reinforced . | . . . . . . . Active Scanning Responses . | . . . . . . . Cargo Convoy Interrupts . | . . . . . . . Stealth | -11 -10 -10 -9 -9 -7 -7 --------- Run | Yrd Mat Min Mat Min Zio Dee Distress Signals . | . . . . . . . Communications Jammed . | . . . . . . . Distress Signals . | . . . . . . . Times Spotted 40 | . 7 14 6 . . 13 Peak Tracking Total 17 | . 3 17 2 . . 11 Tactical Retreats 3 | . 1 . . . . 2 Traps | -11 -10 -10 -9 -9 -7 -7 ------- Run | Yrd Mat Min Mat Min Zio Dee Traps Triggered 1 | . 1 . . . . . Indirectly . | . . . . . . . Trap Hack Attempts . | . . . . . . . Triggered . | . . . . . . . Disarmed . | . . . . . . . Reprogrammed . | . . . . . . . Reused . | . . . . . . . Traps Extracted . | . . . . . . . Installed . | . . . . . . . Triggered . | . . . . . . . Machines | -11 -10 -10 -9 -9 -7 -7 ---------- Run | Yrd Mat Min Mat Min Zio Dee Machines Disabled 1 | . . . . . . 1 Max in Single Turn 1 | . . . . . . 1 Machines Repaired . | . . . . . . . Machines Dismantled 3 | . . . . . 3 . Machines Sabotaged . | . . . . . . . Overloaded Fab Kills . | . . . . . . . Hacking | -11 -10 -10 -9 -9 -7 -7 --------- Run | Yrd Mat Min Mat Min Zio Dee Machines Accessed 6 | . 2 . 3 . 1 . Terminals 4 | . 2 . 2 . . . Fabricators . | . . . . . . . Repair Stations . | . . . . . . . Recycling Units 1 | . . . 1 . . . Scanalyzers . | . . . . . . . Garrison Access . | . . . . . . . Total Hacks 11 | . 3 . 4 . 4 . Successful 7 | . 1 . 2 . 4 . Failed 4 | . 2 . 2 . . . Catastrophic 2 | . 1 . 1 . . . Database Lockouts . | . . . . . . . Manual 7 | . 3 . 3 . 1 . Terminals 6 | . 3 . 3 . . . Fabricators . | . . . . . . . Repair Stations . | . . . . . . . Recycling Units 1 | . . . 1 . . . Scanalyzers . | . . . . . . . Garrison Access . | . . . . . . . Terminal Hacks 4 | . . . . . 4 . Part Schematic 4 | . . . . . 4 . Fabricator Hacks . | . . . . . . . Repair Station Hacks . | . . . . . . . Recycling Unit Hacks 1 | . . . 1 . . . Retrieve Components 1 | . . . 1 . . . Scanalyzer . | . . . . . . . Garrison Access Hacks . | . . . . . . . Unauthorized Hacks 2 | . 1 . 1 . . . Terminals 2 | . 1 . 1 . . . Assimilate 1 | . . . 1 . . . Botnet 1 | . 1 . . . . . Fabricators . | . . . . . . . Repair Stations . | . . . . . . . Recycling Units . | . . . . . . . Scanalyzers . | . . . . . . . Garrison Access . | . . . . . . . Data Cores Recovered . | . . . . . . . Used . | . . . . . . . Hacking Detections 4 | . 2 . 2 . . . Full Trace Events . | . . . . . . . Feedback Events . | . . . . . . . Feedback Blocked . | . . . . . . . Robot Schematics Acquired . | . . . . . . . Robots Built . | . . . . . . . Authchips . | . . . . . . . Time . | . . . . . . . Total Robot Build Rating . | . . . . . . . Part Schematics Acquired 4 | . . . . . 4 . Parts Built . | . . . . . . . Authchips . | . . . . . . . Time . | . . . . . . . Total Part Build Rating . | . . . . . . . Parts Repaired . | . . . . . . . Time . | . . . . . . . Parts Recycled . | . . . . . . . Recycled Matter . | . . . . . . . Retrieved Matter . | . . . . . . . Retrieved Components 1 | . . . 1 . . . Parts Scanalyzed . | . . . . . . . Part Schematics Acquired . | . . . . . . . Parts Damaged . | . . . . . . . Bothacking | -11 -10 -10 -9 -9 -7 -7 ------------ Run | Yrd Mat Min Mat Min Zio Dee Used RIF Installer . | . . . . . . . Robots Hacked . | . . . . . . . Non-combat . | . . . . . . . Combat . | . . . . . . . Robot Hacks Applied . | . . . . . . . Relay Couplers Released . | . . . . . . . Fabnet Peak Effective % . | . . . . . . . Robots Rewired . | . . . . . . . Allies Hacked . | . . . . . . . Hacks Repelled . | . . . . . . . Allies | -11 -10 -10 -9 -9 -7 -7 -------- Run | Yrd Mat Min Mat Min Zio Dee Total Allies . | . . . . . . . Largest Group . | . . . . . . . Highest-Rated Group . | . . . . . . . Highest-Rated Ally . | . . . . . . . Total Orders . | . . . . . . . Ally Attacks . | . . . . . . . Total Damage . | . . . . . . . Kills . | . . . . . . . Allies Corrupted . | . . . . . . . Allies Melted . | . . . . . . . Intel | -11 -10 -10 -9 -9 -7 -7 ------- Run | Yrd Mat Min Mat Min Zio Dee Robot Analysis Total . | . . . . . . . Derelict Logs Recovered 2 | . . 1 . 1 . . Drone Launches . | . . . . . . . Drone Recoveries . | . . . . . . . Exploration | -11 -10 -10 -9 -9 -7 -7 ------------- Run | Yrd Mat Min Mat Min Zio Dee Turns Passed 1790 | 42 282 78 523 21 594 250 Spaces Moved 1305 | 34 273 73 327 18 398 182 Core 31 | 17 . . 11 . . 3 Treads 162 | . . . 162 . . . Legs 676 | . . . 81 18 398 179 Wheels 436 | 17 273 73 73 . . . Hover . | . . . . . . . Flight . | . . . . . . . Fastest Speed 50 | 50 80 90 100 120 120 100 Average Speed 113 | 85 80 91 138 120 120 120 Slowest Speed 250 | 150 90 100 200 120 120 250 Overloaded Moves . | . . . . . . . Propulsion Burnouts . | . . . . . . . Robots Hopped . | . . . . . . . Cave-ins Triggered . | . . . . . . . Exploration Rate (%) 31 | 4 43 31 29 5 61 44 Regions Visited 6 Branch Regions 4 Pre-discovered Areas . | . . . . . . . Known Exits Taken . | . . . . . . . Unknown Exits Taken 6 | 1 1 1 1 1 1 . Scrap Searched 2 | . . . . . 2 . Spaces Dug . | . . . . . . . Terrain Destroyed 1 | . . . . . . 1 Melee . | . . . . . . . Projectile 1 | . . . . . . 1 AOE . | . . . . . . . Terrain Rammed . | . . . . . . . Walls Destroyed . | . . . . . . . Machines Disabled . | . . . . . . . Actions | -11 -10 -10 -9 -9 -7 -7 --------- Run | Yrd Mat Min Mat Min Zio Dee Total 1481 | 46 313 77 377 17 453 198 Wait 37 | . 21 . . . 16 . Move 1299 | 33 272 72 326 17 397 182 Hop . | . . . . . . . Pick Up 31 | 7 4 . 18 . 2 . Fast Attach 2 | . . . . . 2 . Attach 23 | 6 2 1 6 . . 8 Detach . | . . . . . . . Swap 6 | . . . 4 . 1 1 Drop 12 | . . . 8 . 4 . Fire 43 | . 14 4 14 . 4 7 Melee . | . . . . . . . Ram . | . . . . . . . Kick 1 | . . . 1 . . . Crush . | . . . . . . . Escape Stasis . | . . . . . . . Rewire . | . . . . . . . Trap . | . . . . . . . Miscellaneous 27 | . . . . . 27 . Route ------- -11/Scrapyard -10/Materials (discovered 3 exits: *Mat / [*Min x2]) -10/Mines -9/Materials (discovered 3 exits: [*Min x2] / [*Sto]) -9/Mines (discovered 2 exits: [*Mat] / *Zio) -7/Zion -7/Deep Caves History --------- Turn | Location | Event 23 | -11/Scrapyard | Discovered new exit (range 15) 43 | -11/Scrapyard | Entered Materials 126 | -10/Materials | Discovered new exit (range 5) 237 | -10/Materials | Discovered new exit (range 9) 302 | -10/Materials | Build established: Mutant 309 | -10/Materials | Discovered new exit (range 6) 325 | -10/Materials | Entered Mines 334 | -10/Mines | Learned Materials garrison access intel 338 | -10/Mines | Discovered new exit (range 7) 368 | -10/Mines | Assembled infested the area 403 | -10/Mines | Entered Materials 403 | -9/Materials | Evolved 2 slots: Utility x2 675 | -9/Materials | Discovered new exit (range 11) 703 | -9/Materials | Discovered new exit (range 15) 906 | -9/Materials | Discovered new exit (range 8) 926 | -9/Materials | Entered Mines 927 | -9/Mines | A Derelict revealed a hidden shortcut to a safe place 934 | -9/Mines | Discovered new exit (range 14) 937 | -9/Mines | Learned Materials terminal intel 947 | -9/Mines | Entered Zion 1041 | -7/Zion | Given A8's code to call for help 1537 | -7/Zion | Discovered new exit (range 3) 1537 | -7/Zion | Saw the warning signs outside the Deep Caves entrance 1541 | -7/Zion | Entered Deep Caves 1730 | -7/Deep Caves | Attacked by Z-Imprinter 1741 | -7/Deep Caves | Z-Facility disabled 1777 | -7/Deep Caves | Core integrity fell below 50% 1788 | -7/Deep Caves | Core integrity fell below 20% 1791 | -7/Deep Caves | Destroyed by RA-E8K(z) with Zionite Laser-S Last Messages --------------- Z-Imprinter: GET AWAY FROM HERE! I've worked too hard for our future just to have you ruin everything! 01735_ BX-VX3(o) is busy at the terminal. 01737_ Enh. Flamer destroyed. 01741_ Z-Facility disabled. 01747_ Seismic Detector destroyed. 01758_ Slug Cannon destroyed. 01760_ Tractor Beam destroyed. 01762_ Carbon-fiber Leg destroyed. 01762_ Sensor Array destroyed. 01771_ Plasma Cutter destroyed. 01772_ Lgt. Armor Plating destroyed. 01772_ Cld. Ion Engine destroyed. 01776_ Carbon-fiber Leg destroyed. 01778_ Imp. Power Shielding destroyed. 01782_ Imp. Terrain Scanner destroyed. 01786_ Carbon-fiber Leg destroyed. 01788_ Deuterium Engine destroyed. 01791_ Sml. Storage Unit destroyed. Map ----- +----------------------------------------------------+ | | | | | | | | | | | | | | | | | | | | | | | | | | | ?????????????????????????????????????????????????? | | ??????????????????????????????##?????????????????? | | ?????????????????????# ????### ???????????????? | | ?????????????????????# ???# ??????????????# | | ?????????????######??# ??# ?????? ##?### | | ????????????## # #?# ## ?????? ## # | | ???????????? zz ## ?????? | | ??????????? z ???? | | ??????????? ???? | | ??????????? ????? | | ?????????? ?????? | | ?????????? """"" ??????"" | | ????????? @""""""??????"" | | ????????? """"""????"""" | | ????????? """""????"""" | | ????????? """"????" | | ????????? """""?????""" | | ????????? """""????"""" | | ????????? """""?"?""""" | | ????????? """"""?""""""" | | ????????? """""?"" " " | | ????????? """""?""" | | ????????? """""?"" | | ????????? """""?""" | | ????????? """""""" | | ???????? """"""""""" | | ???????? """""""""""" | | ??????? z z"""""" | | ??????? """""" """ | | ??????? """""" """"" | | ??????? """"" """"""" | | ??????? """" """"""" | | ??????? """" """"""" | | ??????? """" """"" | | ???????? """ """ | | ???????? """" | | ????????? """""""""" | +----------------------------------------------------+ Best States ------------- Heat Dissipation 28 Energy Generation 14 Energy Capacity 280 Matter Stores 300 Matter Capacity 300 Sight Range 16 Robot Scan Range 14 Terrain Scan Range 16 Terrain Scan Density 10 Armor Coverage 150 Resistance: KI 20 Resistance: TH 20 Resistance: EX 20 Resistance: EM 20 Resistance: I 20 Resistance: S 20 Resistance: P 20 Power Shielding 66 Evasion (%) 55 Recoil Reduction 2 Offensive Hacking 10 Item Schematics ----------------- Battle Rifle | -7/Zion | Free Battle Cannon | -7/Zion | Free Enh. Flamer | -7/Zion | Free Ripper | -7/Zion | Free Robot Schematics ------------------ None Fabricated ------------ Nothing Alien Tech Used ----------------- None Achievements -------------- Signs Are For Wimps Challenges ------------ None Game ------ Seed HardcellReinforcedTendrils Manual? 0 Play Time 00:21:45 Cumulative 62.8 hours Start 2024.06.25 @ 19:35:45 End 2024.06.25 @ 19:55:16 Sessions 1 Manual Loads 0 Difficulty Adventurer Special Mode None Game No. 93 Rogue 17 Adventurer 76 Explorer 0 Win Type - Total 0 Types 0/0/0/0/0/0/0/0/0 Lore% 27 Gallery% 50 Achievement% 42 Wizard Run 0 Options --------- Layout 1 ASCII 0 Keyboard 0 Movement Mouse Keybinds 0 Fullscreen 1 Font 32/SmallcapsGlow Map View 50x35 Zoom Use 0% Tactical HUD 1 Map Filters NONE Filters NONE Steam 1 RUN: adb866a8-3e13-45e1-a71e-72608d850a59